fUST/lending_fUST_20250901
["ID","MTS","AMOUNT","RATE_DAILY","PERIOD"]
[382570865,1756671915139,-480.0,0.00016554,2]
[382570866,1756671915169,-480.0,0.00016554,2]
[382570867,1756671915200,-480.0,0.00016554,2]
[382570868,1756671915230,-480.0,0.00016554,2]
[382570869,1756671915261,-480.0,0.00016554,2]
[382570870,1756671915292,-480.0,0.00016554,2]
[382570871,1756671915324,-199.06917268,0.00016554,2]
[382570872,1756671915504,-318.9527775,0.00016554,2]
[382570873,1756671915537,-969.21,0.00016554,2]
[382570874,1756671915700,-480.0,0.00016554,2]
[382570875,1756671915731,-480.0,0.00016554,2]
[382570876,1756671915763,-480.0,0.00016554,2]
[382570877,1756671915795,-480.0,0.00016554,2]
[382570878,1756671915827,-480.0,0.00016554,2]
[382570879,1756671915864,-485.31157402,0.00016554,2]
[382570880,1756671915896,-296.00705477,0.00016554,2]
[382570881,1756671915926,-480.0,0.00016554,2]
[382570882,1756671916024,-480.0,0.00016554,2]
[382570883,1756671916055,-480.0,0.00016554,2]
[382570884,1756671916085,-794.75,0.00016554,2]
[382570885,1756671916115,-526.1284565,0.00016554,2]
[382570886,1756671916145,-868.29,0.00016554,2]
[382570887,1756671916176,-480.0,0.00016554,2]
[382570888,1756671916207,-1078.07,0.00016554,2]
[382570889,1756671916238,-105.533087,0.00016554,2]
[382570890,1756671916379,-374.466913,0.00016554,2]
[382570891,1756671916411,-480.0,0.00016554,2]
[382570892,1756671916445,-480.0,0.00016554,2]
[382570893,1756671916476,-515.15,0.00016554,2]
[382570894,1756671916509,-480.0,0.00016554,2]
[382570895,1756671916541,-480.0,0.00016554,2]
[382570896,1756671916573,-480.0,0.00016554,2]
[382570897,1756671916605,-480.0,0.00016554,2]
[382570898,1756671916636,-480.0,0.00016554,2]
[382570899,1756671916668,-654.076174,0.00016554,2]
[382570900,1756671916955,-192.623826,0.00016554,2]
[382570901,1756671916987,-480.0,0.00016554,2]
[382570902,1756671917018,-1030.5,0.00016554,2]
[382570903,1756671917048,-862.78,0.00016554,2]
[382570904,1756671917079,-480.0,0.00016554,2]
[382570905,1756671917111,-480.0,0.00016554,2]
[382570906,1756671917141,-907.37,0.00016554,2]
[382570907,1756671917172,-480.0,0.00016554,2]
[382570933,1756672033035,-300.0,0.00016551,2]
[382570934,1756672033067,-924.12,0.00016552,2]
[382570935,1756672033098,-480.0,0.00016552,2]
[382570936,1756672033130,-1378.12,0.00016552,2]
[382570937,1756672033160,-530.79,0.00016552,2]
[382570938,1756672033190,-480.0,0.00016552,2]
[382570939,1756672033221,-660.71,0.00016552,2]
[382570940,1756672033251,-12.53,0.00016552,2]
[382570941,1756672033528,-467.47,0.00016552,2]
[382570942,1756672033561,-480.0,0.00016552,2]
[382570943,1756672033592,-625.66,0.00016552,2]
[382570944,1756672033629,-480.0,0.00016552,2]
[382570945,1756672033675,-480.0,0.00016552,2]
[382570946,1756672033706,-493.43,0.00016552,2]
[382570947,1756672033738,-612.08,0.00016552,2]
[382570948,1756672033771,-764.9,0.00016552,2]
[382570949,1756672033801,-480.0,0.00016552,2]
[382570950,1756672034020,-480.0,0.00016552,2]
[382570951,1756672034053,-480.0,0.00016552,2]
[382570952,1756672034084,-480.0,0.00016552,2]
[382570953,1756672034115,-856.75,0.00016552,2]
[382570954,1756672034147,-480.0,0.00016552,2]
[382570955,1756672034179,-589.16,0.00016552,2]
[382570956,1756672034217,-897.92,0.00016552,2]
[382570957,1756672034261,-480.0,0.00016552,2]
[382570958,1756672034299,-32.35,0.00016552,2]
[382570959,1756672034350,-447.65,0.00016552,2]
[382570960,1756672034393,-480.0,0.00016552,2]
[382570961,1756672034434,-480.0,0.00016552,2]
[382570962,1756672034474,-160.0,0.00016553,2]
[382570963,1756672034516,-480.0,0.00016553,2]
[382570964,1756672034555,-480.0,0.00016553,2]
[382570965,1756672034597,-480.0,0.00016553,2]
[382570966,1756672034638,-480.0,0.00016553,2]
[382570967,1756672034681,-480.0,0.00016553,2]
[382570968,1756672034719,-500.0,0.00016553,2]
[382570969,1756672034762,-378.34889128,0.00016553,2]
[382570970,1756672035171,-500.0,0.00016553,2]
[382570971,1756672035210,-500.0,0.00016553,2]
[382570972,1756672035250,-470.46599194,0.00016553,2]
[382570973,1756672035287,-761.18,0.00016553,2]
[382570974,1756672035324,-818.86,0.00016553,2]
[382570975,1756672035361,-491.55237605,0.00016553,2]
[382570976,1756672035397,-480.0,0.00016553,2]
[382570977,1756672035433,-480.0,0.00016553,2]
[382570978,1756672035468,-480.0,0.00016553,2]
[382570979,1756672035794,-576.88,0.00016553,2]
[382570980,1756672035831,-480.0,0.00016553,2]
[382570981,1756672035870,-2711.0,0.00016553,2]
[382570982,1756672035903,-823.16,0.00016553,2]
[382570983,1756672036405,-3214.93,0.00016553,2]
[382570984,1756672036436,-480.0,0.00016553,2]
[382570985,1756672036470,-1036.21,0.00016553,2]
[382570986,1756672036704,-1334.89,0.00016553,2]
[382570987,1756672036737,-1016.75,0.00016553,2]
[382570988,1756672036770,-480.0,0.00016553,2]
[382570989,1756672036802,-480.0,0.00016553,2]
[382570990,1756672036837,-1006.97,0.00016553,2]
[382570991,1756672036876,-623.98,0.00016553,2]
[382570992,1756672037070,-114.83,0.00016553,2]
[382570993,1756672037104,-1845.79,0.00016553,2]
[382570994,1756672037136,-500.0,0.00016554,2]
[382570995,1756672037169,-1007.12,0.00016554,2]
[382570996,1756672037200,-480.0,0.00016554,2]
[382570997,1756672037233,-480.0,0.00016554,2]
[382570998,1756672037265,-480.0,0.00016554,2]
[382570999,1756672037447,-963.83,0.00016554,2]
[382571000,1756672037597,-480.0,0.00016554,2]
[382571001,1756672037631,-480.0,0.00016554,2]
[382571002,1756672037663,-841.97,0.00016554,2]
[382571003,1756672037695,-1154.04,0.00016554,2]
[382571004,1756672037725,-1000.0,0.00016554,2]
[382571005,1756672041166,-225.52822298,0.00016554,2]
[382571006,1756672041188,-480.0,0.00016554,2]
[382571007,1756672041209,-480.0,0.00016554,2]
[382571008,1756672041229,-480.0,0.00016554,2]
[382571009,1756672041250,-480.0,0.00016554,2]
[382571010,1756672041271,-480.0,0.00016554,2]
[382571011,1756672041292,-673.84,0.00016554,2]
[382571012,1756672041314,-480.0,0.00016554,2]
[382571013,1756672041334,-480.0,0.00016554,2]
[382571014,1756672041354,-549.22,0.00016554,2]
[382571015,1756672041375,-279.29495814,0.00016554,2]
[382571016,1756672041395,-504.97,0.00016554,2]
[382571017,1756672041414,-480.0,0.00016554,2]
[382571018,1756672041433,-480.0,0.00016554,2]
[382571019,1756672041452,-581.3,0.00016554,2]
[382571020,1756672041472,-1629.86,0.00016554,2]
[382571021,1756672041492,-480.0,0.00016554,2]
[382571022,1756672041511,-942.93,0.00016554,2]
[382571023,1756672041531,-480.0,0.00016554,2]
[382571024,1756672041552,-480.0,0.00016554,2]
[382571025,1756672041572,-480.0,0.00016554,2]
[382571026,1756672041592,-510.7510522,0.00016554,2]
[382571027,1756672041613,-642.2,0.00016554,2]
[382571028,1756672041634,-566.39,0.00016554,2]
[382571029,1756672041654,-480.0,0.00016554,2]
[382571030,1756672041674,-480.0,0.00016554,2]
[382571031,1756672041694,-480.0,0.00016554,2]
[382571032,1756672041715,-1199.99,0.00016554,2]
[382571033,1756672041734,-480.0,0.00016554,2]
[382571034,1756672041754,-480.0,0.00016554,2]
[382571035,1756672041775,-676.41,0.00016554,2]
[382571036,1756672041794,-480.0,0.00016554,2]
[382571037,1756672041814,-480.0,0.00016554,2]
[382571038,1756672041834,-480.0,0.00016554,2]
[382571039,1756672041857,-480.0,0.00016554,2]
[382571040,1756672041876,-529.89,0.00016554,2]
[382571041,1756672041896,-480.0,0.00016554,2]
[382571042,1756672041916,-480.0,0.00016554,2]
[382571043,1756672041936,-480.0,0.00016554,2]
[382571044,1756672041956,-480.0,0.00016554,2]
[382571045,1756672041976,-480.0,0.00016554,2]
[382571046,1756672041996,-480.0,0.00016554,2]
[382571047,1756672042015,-356.36837268,0.00016554,2]
[382571048,1756672042036,-480.0,0.00016554,2]
[382571049,1756672042055,-480.0,0.00016554,2]
[382571050,1756672042076,-554.37,0.00016554,2]
[382571051,1756672042096,-502.47,0.00016554,2]
[382571052,1756672042117,-258.17961623,0.00016554,2]
[382571053,1756672042137,-480.0,0.00016554,2]
[382571054,1756672042157,-945.53,0.00016554,2]
[382571055,1756672042176,-480.0,0.00016554,2]
[382571056,1756672042196,-480.0,0.00016554,2]
[382571057,1756672042215,-480.0,0.00016554,2]
[382571058,1756672042235,-517.52,0.00016554,2]
[382571059,1756672042256,-1078.59,0.00016554,2]
[382571060,1756672042276,-1114.13,0.00016554,2]
[382571061,1756672042297,-758.58,0.00016554,2]
[382571062,1756672042317,-480.0,0.00016554,2]
[382571063,1756672042337,-480.0,0.00016554,2]
[382571064,1756672042363,-480.0,0.00016554,2]
[382571065,1756672042385,-1122.58,0.00016554,2]
[382571066,1756672042412,-480.0,0.00016554,2]
[382571067,1756672042433,-598.83,0.00016554,2]
[382571068,1756672042453,-1108.59,0.00016554,2]
[382571069,1756672042475,-555.9,0.00016554,2]
[382571070,1756672042496,-480.0,0.00016554,2]
[382571071,1756672042516,-480.0,0.00016554,2]
[382571072,1756672042537,-480.0,0.00016554,2]
[382571073,1756672042696,-480.0,0.00016554,2]
[382571074,1756672042718,-480.0,0.00016554,2]
[382571075,1756672042739,-480.0,0.00016554,2]
[382571076,1756672042761,-480.0,0.00016554,2]
[382571077,1756672042783,-434.75143549,0.00016554,2]
[382571078,1756672042804,-711.44,0.00016554,2]
[382571079,1756672042823,-480.0,0.00016554,2]
[382571080,1756672042843,-480.0,0.00016554,2]
[382571081,1756672042867,-616.86,0.00016554,2]
[382571082,1756672042887,-480.0,0.00016554,2]
[382571083,1756672042908,-480.0,0.00016554,2]
[382571084,1756672042927,-480.0,0.00016554,2]
[382571085,1756672042947,-643.84,0.00016554,2]
[382571086,1756672042967,-480.0,0.00016554,2]
[382571087,1756672042986,-480.0,0.00016554,2]
[382571088,1756672043006,-480.0,0.00016554,2]
[382571089,1756672043025,-480.0,0.00016554,2]
[382571090,1756672043044,-480.0,0.00016554,2]
[382571091,1756672043065,-480.0,0.00016554,2]
[382571092,1756672043084,-480.0,0.00016554,2]
[382571093,1756672043104,-480.0,0.00016554,2]
[382571094,1756672043126,-480.0,0.00016554,2]
[382571095,1756672043146,-271.31029319,0.00016554,2]
[382571096,1756672043167,-480.0,0.00016554,2]
[382571097,1756672043186,-480.0,0.00016554,2]
[382571098,1756672043206,-598.07,0.00016554,2]
[382571099,1756672043227,-480.0,0.00016554,2]
[382571100,1756672043247,-480.0,0.00016554,2]
[382571101,1756672043267,-480.0,0.00016554,2]
[382571102,1756672043288,-480.0,0.00016554,2]
[382571103,1756672043308,-864.17,0.00016554,2]
[382571104,1756672043329,-886.3,0.00016554,2]
[382571105,1756672043348,-498.6,0.00016554,2]
[382571106,1756672043369,-480.0,0.00016554,2]
[382571107,1756672043388,-480.0,0.00016554,2]
[382571108,1756672043409,-586.74,0.00016554,2]
[382571109,1756672043429,-480.0,0.00016554,2]
[382571110,1756672043450,-480.0,0.00016554,2]
[382571111,1756672043469,-620.91725656,0.00016554,2]
[382571112,1756672043490,-480.0,0.00016554,2]
[382571113,1756672043509,-480.0,0.00016554,2]
[382571114,1756672043529,-480.0,0.00016554,2]
[382571115,1756672043549,-811.21,0.00016554,2]
[382571116,1756672043569,-480.0,0.00016554,2]
[382571117,1756672043588,-480.0,0.00016554,2]
[382571118,1756672043608,-480.0,0.00016554,2]
[382571119,1756672043629,-733.79,0.00016554,2]
[382571120,1756672043648,-480.0,0.00016554,2]
[382571121,1756672043668,-480.0,0.00016554,2]
[382571122,1756672043688,-151.0,0.00016554,2]
[382571123,1756672043708,-480.0,0.00016554,2]
[382571124,1756672043728,-480.0,0.00016554,2]
[382571125,1756672043749,-480.0,0.00016554,2]
[382571126,1756672043769,-480.0,0.00016554,2]
[382571127,1756672043789,-480.0,0.00016554,2]
[382571128,1756672043809,-252.50414206,0.00016555,2]
[382571129,1756672043828,-762.58917053,0.00016555,2]
[382571130,1756672043848,-207.49830863,0.00016609,2]
[382571131,1756672043871,-1010.01656824,0.00016628,2]
[382571132,1756672043892,-207.49830862,0.00016677,2]
[382571133,1756672043912,-412.376,0.00016695,2]
[382571134,1756672043935,-500.0,0.00016699,2]
[382571135,1756672043956,-151.0,0.000167,2]
[382571136,1756672043977,-219.1142177,0.00016707,2]
[382571137,1756672043998,-528.06,0.00016708,2]
[382571138,1756672044018,-650.67,0.00016708,2]
[382571139,1756672044038,-753.93,0.00016708,2]
[382571140,1756672044059,-480.0,0.00016708,2]
[382571141,1756672044079,-480.0,0.00016708,2]
[382571142,1756672044099,-930.39,0.00016708,2]
[382571143,1756672044119,-754.98,0.00016708,2]
[382571144,1756672044140,-480.0,0.00016708,2]
[382571145,1756672044161,-480.0,0.00016708,2]
[382571146,1756672044180,-480.0,0.00016708,2]
[382571147,1756672044200,-480.0,0.00016708,2]
[382571148,1756672044220,-496.54,0.00016708,2]
[382571149,1756672044241,-480.0,0.00016708,2]
[382571150,1756672044261,-480.0,0.00016708,2]
[382571151,1756672044282,-910.9,0.00016708,2]
[382571152,1756672044301,-608.39,0.00016708,2]
[382571153,1756672044322,-480.0,0.00016708,2]
[382571154,1756672044342,-480.0,0.00016708,2]
[382571155,1756672044363,-480.0,0.00016708,2]
[382571156,1756672044383,-480.0,0.00016708,2]
[382571157,1756672044404,-534.89,0.00016708,2]
[382571158,1756672044424,-873.69,0.00016708,2]
[382571159,1756672044444,-480.0,0.00016708,2]
[382571160,1756672044464,-480.0,0.00016708,2]
[382571161,1756672044489,-480.0,0.00016708,2]
[382571162,1756672044510,-615.7,0.00016708,2]
[382571163,1756672044532,-578.42,0.00016708,2]
[382571164,1756672044554,-480.0,0.00016708,2]
[382571165,1756672044577,-480.0,0.00016708,2]
[382571166,1756672044599,-1247.45,0.00016708,2]
[382571167,1756672044624,-480.0,0.00016708,2]
[382571168,1756672044647,-480.0,0.00016708,2]
[382571169,1756672044669,-480.0,0.00016708,2]
[382571170,1756672044692,-480.0,0.00016708,2]
[382571171,1756672044715,-480.0,0.00016708,2]
[382571172,1756672044737,-950.29,0.00016708,2]
[382571173,1756672044759,-1187.64,0.00016708,2]
[382571174,1756672044781,-480.0,0.00016708,2]
[382571175,1756672044802,-480.0,0.00016708,2]
[382571176,1756672044822,-1090.37,0.00016708,2]
[382571177,1756672044842,-480.0,0.00016708,2]
[382571178,1756672044867,-1000.52,0.00016708,2]
[382571179,1756672044887,-480.0,0.00016708,2]
[382571180,1756672044909,-480.0,0.00016708,2]
[382571181,1756672044930,-480.0,0.00016708,2]
[382571182,1756672044951,-480.0,0.00016708,2]
[382571183,1756672044972,-577.5,0.00016708,2]
[382571184,1756672044995,-480.0,0.00016708,2]
[382571185,1756672045016,-497.1,0.00016708,2]
[382571186,1756672045037,-480.0,0.00016708,2]
[382571187,1756672045060,-888.5,0.00016708,2]
[382571188,1756672045081,-905.4,0.00016708,2]
[382571189,1756672045103,-839.38,0.00016708,2]
[382571190,1756672045124,-952.06,0.00016708,2]
[382571191,1756672045145,-480.0,0.00016708,2]
[382571192,1756672045166,-480.0,0.00016708,2]
[382571193,1756672045187,-480.0,0.00016708,2]
[382571194,1756672045207,-3025.15520232,0.00016709,2]
[382571195,1756672045228,-3028.397421,0.00016709,2]
[382571196,1756672045250,-78676.0589952,0.00016709,2]
[382571200,1756672063915,5000.0,0.00016551,2]
[382571202,1756672068838,251.81255087,0.000259,120]
[382571212,1756672112006,28567.09812168,0.00025,120]
[382571213,1756672113042,243.71564768,0.0002,120]
[382571214,1756672115163,543.93402162,0.00024108,120]
[382571215,1756672115258,615.86505519,0.00025,120]
[382571216,1756672115471,252.28375871,0.00025,120]
[382571217,1756672115690,1396.85971919,0.00024,60]
[382571220,1756672118598,205.33726642,0.00027,120]
[382571223,1756672121604,290.71881385,0.00027397,120]
[382571224,1756672121736,222.0889317,0.0001536,120]
[382571225,1756672123606,190.45886248,0.0002739,120]
[382571226,1756672123862,283.18793136,0.0002739,120]
[382571227,1756672124222,321.28866302,0.00026,120]
[382571228,1756672124478,425.87952013,0.00025,120]
[382571231,1756672125040,191.01170414,0.00027,120]
[382571243,1756672223361,-300.0,0.00016551,2]
[382571244,1756672223394,-480.0,0.00016552,2]
[382571245,1756672223425,-480.0,0.00016552,2]
[382571246,1756672223456,-1819.0,0.00016552,2]
[382571247,1756672223488,-802.42,0.00016552,2]
[382571248,1756672223519,-480.0,0.00016552,2]
[382571249,1756672223550,-480.0,0.00016552,2]
[382571250,1756672224298,-646.12,0.00016552,2]
[382571251,1756672224329,-480.0,0.00016552,2]
[382571252,1756672224362,-558.4,0.00016552,2]
[382571253,1756672224394,-778.25,0.00016552,2]
[382571254,1756672224429,-480.0,0.00016552,2]
[382571255,1756672224460,-480.0,0.00016552,2]
[382571256,1756672224494,-480.0,0.00016552,2]
[382571257,1756672224527,-210.46874851,0.00016552,2]
[382571258,1756672224562,-480.0,0.00016552,2]
[382571259,1756672224595,-333.53250298,0.00016552,2]
[382571260,1756672224659,-146.46749702,0.00016552,2]
[382571261,1756672224689,-654.54,0.00016552,2]
[382571262,1756672224723,-480.0,0.00016552,2]
[382571263,1756672224752,-480.0,0.00016552,2]
[382571264,1756672224782,-943.75,0.00016552,2]
[382571265,1756672224812,-480.0,0.00016552,2]
[382571266,1756672224843,-480.0,0.00016552,2]
[382571267,1756672224874,-480.0,0.00016552,2]
[382571268,1756672224904,-742.9,0.00016552,2]
[382571269,1756672224972,-480.0,0.00016552,2]
[382571270,1756672225003,-935.92,0.00016552,2]
[382571271,1756672225036,-480.0,0.00016552,2]
[382571272,1756672225069,-480.0,0.00016552,2]
[382571273,1756672225100,-759.48,0.00016552,2]
[382571274,1756672225133,-759.96,0.00016552,2]
[382571275,1756672225164,-625.9,0.00016552,2]
[382571276,1756672225196,-460.82,0.00016552,2]
[382571277,1756672225377,-35.85,0.00016552,2]
[382571278,1756672225409,-480.0,0.00016552,2]
[382571279,1756672225440,-480.0,0.00016552,2]
[382571280,1756672225479,-586.57,0.00016552,2]
[382571281,1756672225521,-805.83,0.00016552,2]
[382571282,1756672225559,-480.0,0.00016552,2]
[382571283,1756672225599,-480.0,0.00016552,2]
[382571284,1756672225641,-480.0,0.00016552,2]
[382571285,1756672225684,-552.84,0.00016552,2]
[382571286,1756672225725,-450.19,0.00016552,2]
[382571287,1756672226089,-337.45,0.00016552,2]
[382571288,1756672226127,-583.04,0.00016552,2]
[382571289,1756672226167,-480.0,0.00016552,2]
[382571290,1756672226204,-480.0,0.00016552,2]
[382571291,1756672226241,-1548.08,0.00016552,2]
[382571292,1756672226277,-480.0,0.00016552,2]
[382571293,1756672226312,-480.0,0.00016552,2]
[382571294,1756672226348,-207.72,0.00016552,2]
[382571295,1756672226634,-807.43,0.00016552,2]
[382571296,1756672226671,-480.0,0.00016552,2]
[382571297,1756672226707,-729.47,0.00016552,2]
[382571298,1756672226746,-480.0,0.00016552,2]
[382571299,1756672226783,-872.94,0.00016552,2]
[382571300,1756672226820,-480.0,0.00016552,2]
[382571301,1756672226856,-944.75,0.00016552,2]
[382571302,1756672227565,-629.08,0.00016552,2]
[382571303,1756672227599,-1320.7,0.00016552,2]
[382571304,1756672227632,-823.41,0.00016552,2]
[382571305,1756672227664,-878.06,0.00016552,2]
[382571306,1756672227698,-630.6,0.00016553,2]
[382571307,1756672227730,-480.0,0.00016553,2]
[382571308,1756672228017,-4583.27,0.00016553,2]
[382571407,1756672234632,848.84928408,0.00016452,2]
[382571410,1756672238071,-238.65494765,0.00016552,2]
[382571411,1756672238080,-195.79179311,0.00016553,2]
[382571412,1756672238092,-567.95000424,0.00016553,2]
[382571528,1756672239734,-69.72820265,0.00016553,2]
[382571529,1756672239743,-4249.28,0.00016553,2]
[382571530,1756672239752,-480.0,0.00016553,2]
[382571531,1756672239762,-837.06,0.00016553,2]
[382571532,1756672239771,-480.0,0.00016553,2]
[382571534,1756672239779,-560.08,0.00016553,2]
[382571536,1756672239790,-480.0,0.00016553,2]
[382571538,1756672239799,-1959.28,0.00016553,2]
[382571541,1756672239809,-1056.33,0.00016553,2]
[382571543,1756672239818,-480.0,0.00016553,2]
[382571545,1756672239828,-480.0,0.00016553,2]
[382571547,1756672239838,-480.0,0.00016553,2]
[382571549,1756672239847,-1175.1,0.00016553,2]
[382571551,1756672239857,-480.0,0.00016553,2]
[382571553,1756672239866,-480.0,0.00016553,2]
[382571555,1756672239875,-832.12,0.00016553,2]
[382571557,1756672239885,-480.0,0.00016553,2]
[382571559,1756672239894,-574.91,0.00016553,2]
[382571561,1756672239904,-480.0,0.00016553,2]
[382571563,1756672239913,-3769.9,0.00016553,2]
[382571565,1756672239927,-1136.06,0.00016553,2]
[382571567,1756672239937,-82.17285755,0.00016553,2]
[382571569,1756672239948,-397.82714245,0.00016553,2]
[382571571,1756672239958,-480.0,0.00016553,2]
[382571573,1756672239968,-542.77,0.00016553,2]
[382571576,1756672239979,-2711.95,0.00016553,2]
[382571578,1756672239988,-480.0,0.00016553,2]
[382571580,1756672239997,-480.0,0.00016553,2]
[382571582,1756672240006,-1090.62,0.00016553,2]
[382571584,1756672240017,-483.83681509,0.00016553,2]
[382571586,1756672240027,-480.0,0.00016553,2]
[382571588,1756672240035,-480.0,0.00016553,2]
[382571589,1756672240044,-500.0,0.00016554,2]
[382571591,1756672240054,-480.0,0.00016554,2]
[382571593,1756672240063,-480.0,0.00016554,2]
[382571595,1756672240072,-480.0,0.00016554,2]
[382571597,1756672240081,-165.47958596,0.00016554,2]
[382571599,1756672240091,-480.0,0.00016554,2]
[382571601,1756672240099,-198.0,0.00016554,2]
[382571603,1756672240109,-480.0,0.00016554,2]
[382571605,1756672240119,-198.0,0.00016554,2]
[382571607,1756672240128,-151.0,0.00016554,2]
[382571609,1756672240139,-480.0,0.00016554,2]
[382571611,1756672240148,-480.0,0.00016554,2]
[382571613,1756672240159,-480.0,0.00016554,2]
[382571615,1756672240168,-500.0,0.00016554,2]
[382571617,1756672240177,-575.14,0.00016554,2]
[382571619,1756672240187,-151.0,0.00016554,2]
[382571621,1756672240196,-500.0,0.00016554,2]
[382571623,1756672240205,-151.0,0.00016554,2]
[382571625,1756672240214,-198.0,0.00016554,2]
[382571627,1756672240223,-500.0,0.00016554,2]
[382571629,1756672240232,-480.0,0.00016554,2]
[382571631,1756672240241,-151.0,0.00016554,2]
[382571633,1756672240250,-198.0,0.00016554,2]
[382571635,1756672240259,-151.0,0.00016554,2]
[382571637,1756672240269,-534.0,0.00016554,2]
[382571639,1756672240278,-151.0,0.00016554,2]
[382571641,1756672240288,-500.0,0.00016554,2]
[382571643,1756672240297,-500.0,0.00016554,2]
[382571645,1756672240307,-480.0,0.00016554,2]
[382571647,1756672240317,-480.0,0.00016554,2]
[382571649,1756672240326,-480.0,0.00016554,2]
[382571651,1756672240336,-480.0,0.00016554,2]
[382571653,1756672240345,-480.0,0.00016554,2]
[382571655,1756672240354,-683.21,0.00016554,2]
[382571657,1756672240364,-480.0,0.00016554,2]
[382571659,1756672240373,-480.0,0.00016554,2]
[382571661,1756672240383,-506.26,0.00016554,2]
[382571663,1756672240392,-272.52744143,0.00016554,2]
[382571665,1756672240401,-480.0,0.00016554,2]
[382571667,1756672240411,-480.0,0.00016554,2]
[382571669,1756672240420,-480.0,0.00016554,2]
[382571671,1756672240429,-480.0,0.00016554,2]
[382571673,1756672240438,-612.43,0.00016554,2]
[382571675,1756672240448,-480.0,0.00016554,2]
[382571677,1756672240457,-723.49,0.00016554,2]
[382571679,1756672240467,-2272.53727853,0.00016559,2]
[382571681,1756672240477,-4040.06627295,0.00016559,2]
[382571683,1756672240487,-480.0,0.00016708,2]
[382571685,1756672240496,-1171.12,0.00016708,2]
[382571687,1756672240506,-480.0,0.00016708,2]
[382571689,1756672240516,-480.0,0.00016708,2]
[382571691,1756672240527,-480.0,0.00016708,2]
[382571693,1756672240537,-480.0,0.00016708,2]
[382571695,1756672240547,-1636.03,0.00016708,2]
[382571697,1756672240557,-946.5,0.00016708,2]
[382571699,1756672240567,-480.0,0.00016708,2]
[382571701,1756672240577,-542.79,0.00016708,2]
[382571703,1756672240587,-153.37995239,0.00016708,2]
[382571705,1756672240597,-291323.9410048,0.00016709,2]
[382571707,1756672240606,-280.05004847,0.0001674,2]
[382571709,1756672240616,-207.49830862,0.00016746,2]
[382571711,1756672240625,-500.0,0.00016773,2]
[382571713,1756672240635,-500.0,0.00016773,2]
[382571715,1756672240644,-500.0,0.00016773,2]
[382571717,1756672240653,-261.70406853,0.00016773,2]
[382571719,1756672240663,-500.0,0.00016773,2]
[382571721,1756672240673,-500.0,0.00016773,2]
[382571723,1756672240683,-500.0,0.00016773,2]
[382571725,1756672240692,-500.0,0.00016773,2]
[382571727,1756672240701,-500.0,0.00016773,2]
[382571729,1756672240711,-500.0,0.00016773,2]
[382571731,1756672240721,-500.0,0.00016773,2]
[382571733,1756672240732,-500.0,0.00016773,2]
[382571735,1756672240742,-500.0,0.00016773,2]
[382571737,1756672240751,-500.0,0.00016773,2]